bitfinex-derivatives/quotes_ETHF0:USTF0_20251204
["timestamp","ask_amount","ask_price","bid_price","bid_amount"]
[1764807235017,4.0498,3180.1,3180.0,5.2294]
[1764807235212,4.0498,3179.9,3179.8,0.15721]
[1764807235410,5.2326,3180.2,3180.1,2.0216]
[1764807236020,1.2181,3180.5,3180.1,4.1274]
[1764807236417,2.0248,3180.2,3180.1,4.1274]
[1764807236624,4.0498,3180.2,3179.6,3.21251728]
[1764807237214,4.0498,3179.7,3179.6,3.21251728]
[1764807237417,1.2181,3179.5,3178.4,1.66241754]
[1764807237615,2.0248,3178.2,3177.9,1.66241754]
[1764807237917,4.4259,3178.5,3178.1,4.1274]
[1764807238420,4.0498,3178.2,3178.1,0.00359103]
[1764807239120,4.42895756,3178.5,3178.1,2.02519103]
[1764807239522,0.00305756,3178.5,3178.4,4.1274]
[1764807240921,2.02785756,3178.5,3178.1,0.00359103]
[1764807241317,5.2679,3178.2,3178.1,0.00359103]
[1764807242520,2.0248,3178.2,3178.1,0.00359103]
[1764807242717,0.00305756,3178.5,3178.4,4.1274]
[1764807243126,0.00305756,3178.5,3178.1,0.00359103]
[1764807243127,2.02785756,3178.5,3178.1,0.00359103]
[1764807244124,2.1187,3178.2,3178.1,2.16699103]
[1764807244316,2.1187,3178.2,3178.1,0.00359103]
[1764807244818,0.00305756,3178.5,3178.1,4.36549103]
[1764807245422,0.00305756,3178.5,3178.4,2.1634]
[1764807246222,2.12175756,3178.5,3178.1,0.00359103]
[1764807247024,3.39405756,3178.5,3178.1,0.00359103]
[1764807247919,0.00305756,3178.5,3178.4,2.1634]
[1764807248225,4.2483,3178.2,3178.1,0.00359103]
[1764807248523,7.4561,3178.2,3178.1,0.00359103]
[1764807254024,4.2483,3176.9,3176.4,1.66241754]
[1764807254220,7.4561,3176.9,3176.3,3.2078]
[1764807254725,7.4561,3176.9,3176.8,2.1634]
[1764807254917,5.3265,3176.9,3176.8,4.36415573]
[1764807255119,7.4561,3176.9,3176.8,0.00225573]
[1764807255617,7.4561,3176.9,3175.7,3.2078]
[1764807255820,4.4801,3176.5,3175.7,3.2078]
[1764807256421,4.4801,3176.5,3175.7,3.21087194]
[1764807257127,2.1187,3175.8,3175.7,3.21087194]
[1764807257430,0.00323842,3175.8,3175.7,7.57277194]
[1764807258929,2.12193842,3175.8,3175.7,3.21087194]
[1764807259133,4.25153842,3175.8,3175.7,0.00307194]
[1764807259534,2.12193842,3175.8,3175.7,2.16647194]
[1764807259828,0.00323842,3175.8,3175.7,4.36497194]
[1764807260635,2.12193842,3175.8,3175.7,2.16647194]
[1764807260937,2.12193842,3175.8,3175.7,0.00307194]
[1764807261134,2.12193842,3175.8,3175.7,2.16647194]
[1764807261432,0.00323842,3175.8,3175.7,4.36497194]
[1764807263432,3.2078,3176.9,3176.4,2.1634]
[1764807263642,5.5206,3176.5,3176.0,3.36519]
[1764807263941,3.2078,3176.9,3176.4,4.3619]
[1764807264134,2.1187,3176.5,3176.4,4.3619]
[1764807264437,5.52406958,3176.5,3176.1,0.15739]
[1764807264834,0.00346958,3176.5,3176.4,4.3619]
[1764807265237,0.00346958,3176.5,3176.4,4.51928]
[1764807265537,1.2723,3177.5,3176.9,4.3619]
[1764807265538,0.00471728,3177.0,3176.9,4.3619]
[1764807265739,2.12341728,3177.0,3176.9,2.1634]
[1764807265940,5.52531728,3177.0,3176.4,3.2078]
[1764807266137,0.00471728,3177.0,3176.9,4.3619]
[1764807266442,0.0076203,3177.0,3176.9,4.3619]
[1764807268538,0.0076203,3177.0,3176.9,4.51925]
[1764807268741,3.2078,3177.7,3177.6,2.1634]
[1764807268940,7.4561,3177.7,3177.0,0.15735]
[1764807269841,7.46320819,3177.7,3177.0,1.24806728]
[1764807270837,7.46320819,3177.7,3177.0,0.16206728]
[1764807271146,4.2483,3177.1,3177.0,0.00471728]
[1764807271350,2.1187,3177.1,3177.0,2.16811728]
[1764807271544,1.2723,3177.5,3177.0,4.36661728]
[1764807272846,4.2483,3177.1,3177.0,0.00471728]
[1764807274654,3.2078,3177.3,3176.4,3.2078]
[1764807274655,1.8051,3176.5,3176.4,3.2078]
[1764807274952,1.8051,3176.5,3176.4,5.0484]
[1764807275447,1.1778,3177.0,3176.4,7.1208]
[1764807278751,1.8051,3176.5,3176.4,7.1208]
[1764807279147,3.8203,3176.5,3176.4,5.0484]
[1764807279353,1.8051,3176.5,3176.4,7.1208]
[1764807279551,3.2078,3176.9,3176.4,7.1208]
[1764807279949,1.8051,3176.5,3176.4,7.1208]
[1764807280148,3.2078,3176.9,3176.4,7.1208]
[1764807281153,4.9981,3176.5,3176.4,5.0484]
[1764807281347,3.2078,3176.9,3176.4,7.1208]
[1764807283060,0.33981186,3176.8,3176.4,7.1208]
[1764807283256,3.2078,3176.9,3176.7,3.913]
[1764807283555,3.2078,3176.9,3176.8,3.913]
[1764807283757,3.54760803,3176.9,3176.8,3.913]
[1764807283960,3.2078,3176.9,3176.8,3.913]
[1764807284149,1.2723,3177.5,3176.5,0.5209]
[1764807284150,7.0281,3177.4,3176.6,0.15737]
[1764807284364,4.83348226,3177.3,3177.2,1.8406]
[1764807284657,0.33985207,3177.3,3177.2,3.913]
[1764807284958,3.82740819,3177.7,3177.6,1.8406]
[1764807285160,4.50082825,3177.7,3177.0,1.24335]
[1764807285357,3.82740819,3177.7,3177.6,1.8406]
[1764807285560,4.50072793,3177.7,3177.6,1.8406]
[1764807285860,2.48552793,3177.7,3177.6,3.913]
[1764807286256,1.81220819,3177.7,3177.6,3.913]
[1764807286560,3.59070819,3177.7,3177.1,0.15734]
[1764807286761,3.59070819,3177.7,3177.6,1.8963]
[1764807287664,1.81220819,3177.7,3177.6,3.7071]
[1764807288166,3.59070819,3177.7,3177.1,0.15734]
[1764807289064,3.59070819,3177.7,3177.6,1.8963]
[1764807289264,3.59070819,3177.7,3177.6,3.7071]
[1764807289465,1.81220819,3177.7,3177.6,3.7071]
[1764807290762,3.59070819,3177.7,3177.2,0.15734]
[1764807291161,0.00710819,3177.7,3177.6,3.7071]
[1764807291884,3.6593,3177.3,3177.2,3.71605754]
[1764807292084,3.6593,3177.1,3177.0,3.7071]
[1764807292290,4.8174,3177.0,3176.9,5.1041]
[1764807292588,4.8174,3177.0,3176.9,6.9149]
[1764807292783,3.0389,3177.0,3176.9,6.9149]
[1764807293477,4.8174,3177.0,3176.9,5.1041]
[1764807293683,1.8808,3176.8,3176.7,3.7071]
[1764807293885,1.1581,3177.0,3176.6,1.66241754]
[1764807293886,4.8174,3177.0,3176.6,1.66241754]
[1764807294190,1.1581,3177.0,3176.6,3.7071]
[1764807294588,3.6593,3176.7,3176.6,1.8963]
[1764807294885,1.1581,3177.0,3176.5,1.8963]
[1764807294886,3.6593,3176.6,3176.5,1.8963]
[1764807295193,4.8174,3176.5,3176.4,6.76651754]
[1764807295885,4.8174,3176.5,3176.4,4.87021754]
[1764807296094,4.8174,3176.5,3176.4,6.76651754]
[1764807296284,4.8174,3176.5,3176.4,5.1041]
[1764807296486,4.8174,3176.5,3176.4,1.8963]
[1764807296682,2.1667409,3176.5,3176.0,3.2078]
[1764807296893,3.6593,3176.1,3176.0,3.2078]
[1764807297086,1.1581,3176.5,3175.7,5.37258948]
[1764807297087,1.8808,3175.8,3175.7,5.37258948]
[1764807297284,1.8808,3175.8,3175.7,3.71017194]
[1764807297592,3.6593,3175.8,3175.7,0.00307194]
[1764807298091,1.8808,3175.8,3175.7,3.71017194]
[1764807298894,4.8174,3176.0,3175.9,1.8963]
[1764807300087,3.6593,3175.8,3175.7,1.89937194]
[1764807300287,3.6593,3175.8,3175.7,0.00307194]
[1764807300489,6.8671,3175.8,3175.7,0.00307194]
[1764807300891,3.6593,3175.7,3175.6,0.22482489]
[1764807301391,3.6593,3175.7,3175.6,2.12112489]
[1764807301792,1.8808,3176.0,3175.9,3.7071]
[1764807302191,3.6593,3175.7,3175.6,0.22811661]
[1764807303394,2.9014,3176.0,3175.9,3.5438]
[1764807303588,1.74801728,3176.1,3176.0,3.5438]
[1764807303803,4.9511,3176.6,3176.5,3.5438]
[1764807304191,6.88,3176.6,3176.0,1.0046]
[1764807304892,6.88471728,3176.6,3176.0,1.00931728]
[1764807305094,0.9975,3176.5,3176.0,0.00471728]
[1764807306591,3.6722,3176.1,3176.0,0.00471728]
[1764807307096,3.6722,3176.1,3176.0,1.79331728]
[1764807307298,3.6722,3176.1,3176.0,0.00471728]
[1764807308898,3.2078,3176.3,3176.0,3.54851728]
[1764807309398,4.9511,3176.3,3176.2,1.7886]
[1764807309604,6.88,3176.3,3176.2,1.7886]
[1764807310398,3.2078,3176.3,3176.2,3.5438]
[1764807310612,0.00471728,3176.6,3176.5,3.5438]
[1764807310802,1.7433,3176.1,3176.0,3.54851728]
[1764807311505,3.6722,3176.1,3176.0,1.79331728]
[1764807312603,3.6722,3176.1,3174.2,1.66241754]
[1764807312604,3.6722,3175.1,3174.2,1.66241754]
[1764807312903,0.9975,3175.5,3173.8,10.96877336]
[1764807312904,3.2078,3174.9,3174.8,3.5438]
[1764807313097,4.9511,3174.9,3174.8,3.5438]
[1764807313406,6.88,3174.9,3174.0,3.14774051]
[1764807313606,0.00472492,3174.8,3174.7,3.5438]
[1764807313812,0.00472492,3174.8,3174.7,6.7516]
[1764807314501,3.2078,3175.3,3175.2,3.5438]
[1764807315098,4.9511,3175.3,3175.2,1.7886]
[1764807315296,3.2078,3175.3,3175.2,3.5438]
[1764807315503,0.00262997,3175.3,3175.2,6.7516]
[1764807315800,3.2078,3175.7,3175.6,3.5438]
[1764807316811,3.21019989,3175.7,3175.6,3.5438]
[1764807316997,2.14314051,3177.3,3175.6,3.5438]
[1764807316998,3.2078,3176.7,3176.4,0.5034]
[1764807317201,3.2078,3176.7,3176.6,0.5034]
[1764807317506,4.9511,3176.7,3176.6,0.5034]
[1764807317897,3.2078,3177.1,3176.6,1.0068]
[1764807318112,1.0011182,3177.0,3176.6,1.0095422]
[1764807318604,1.0011182,3177.0,3176.6,0.5061422]
[1764807318804,1.7433,3176.7,3176.6,0.5061422]
[1764807319002,3.21252492,3177.1,3177.0,1.0068]
[1764807319003,2.492e-05,3177.1,3177.0,1.0068]
[1764807319310,0.9975,3178.0,3177.0,4.2146]
[1764807319501,0.9975,3178.0,3177.9,3.2078]
[1764807319698,0.9975,3179.0,3177.9,3.2078]
[1764807319903,0.9975,3179.0,3178.4,3.2078]
[1764807320104,1.00144883,3178.5,3178.4,3.2078]
[1764807321002,0.00472492,3178.8,3178.4,3.2078]
[1764807321407,0.9975,3179.5,3178.4,3.2078]
[1764807321408,0.9975,3179.5,3178.7,0.15726]
[1764807321612,0.9975,3179.5,3179.1,3.2078]
[1764807322006,1.00022555,3179.5,3179.1,3.21090026]
[1764807323409,0.00272555,3179.5,3179.1,3.36814026]
[1764807323610,0.00472492,3179.6,3179.3,2.30037051]
[1764807323812,0.9975,3180.0,3179.5,3.2078]
[1764807324409,3.2078,3181.1,3179.6,2.14314051]
[1764807324610,2.7408,3180.0,3179.9,3.2078]
[1764807324815,4.6697,3180.0,3179.9,3.2078]
[1764807325012,3.6722,3179.7,3179.6,0.00471735]
[1764807327014,1.7433,3179.7,3179.6,0.00471735]
[1764807327314,3.7944,3179.7,3179.6,0.00471735]
[1764807328310,0.9975,3180.0,3179.6,0.00471735]
[1764807331012,0.00304873,3180.3,3179.9,5.11692237]
[1764807331218,5.4774,3180.0,3179.9,3.2078]
[1764807331815,0.00304873,3180.3,3179.9,3.2078]
[1764807332014,5.4774,3180.0,3179.9,3.2078]
[1764807334120,0.00304873,3180.3,3179.9,3.365]
[1764807334321,0.00304873,3180.3,3180.2,1.90912237]
[1764807334522,1.00086459,3180.6,3180.2,1.90912237]
[1764807334818,1.00086459,3180.6,3180.5,3.2078]
[1764807335416,0.00336459,3180.6,3180.5,3.2078]
[1764807335811,5.62396459,3180.6,3180.5,3.2078]
[1764807337125,1.27726459,3180.6,3180.5,3.2078]
[1764807337320,0.00336459,3180.6,3180.5,3.2078]
[1764807337628,1.3415,3181.5,3180.8,0.15716]
[1764807337819,1.3415,3181.5,3181.4,3.2078]
[1764807338227,1.2739,3182.4,3181.4,13.29170814]
[1764807338528,4.3467,3182.0,3181.9,3.2078]
[1764807339725,1.2778747,3182.4,3181.9,5.11692237]
[1764807340026,1.2778747,3182.4,3182.3,3.2078]
[1764807340520,0.0039747,3182.4,3182.3,5.11692237]
[1764807340726,5.6245747,3182.4,3182.3,3.2078]
[1764807341927,5.6245747,3182.4,3181.7,3.2078]
[1764807342125,0.0039747,3182.4,3182.3,3.2078]
[1764807343223,4.3467,3182.0,3181.9,3.2078]
[1764807348119,4.3467,3182.0,3181.6,0.00471735]
[1764807348120,4.0956,3181.7,3181.6,0.00471735]
[1764807348323,5.17656723,3181.7,3181.6,0.00471735]
[1764807351631,4.0956,3181.5,3181.4,0.00404321]
[1764807351935,4.0956,3181.1,3181.0,3.2078]
[1764807352132,4.44826632,3181.1,3181.0,3.2078]
[1764807352333,5.17955238,3181.1,3181.0,3.2078]
[1764807352724,5.18045195,3181.1,3181.0,3.2114703]
[1764807355127,5.18045195,3181.1,3180.5,3.2078]
[1764807355128,4.0956,3180.6,3180.5,3.2078]
[1764807355329,5.18045195,3180.6,3180.5,3.2078]
[1764807356134,5.18045195,3180.6,3180.5,3.21073947]
[1764807357328,4.0956,3180.2,3180.1,3.2078]
[1764807357528,5.18045195,3180.2,3179.7,0.15721]
[1764807357736,1.08485195,3180.1,3179.7,0.15721]
[1764807357937,1.08485195,3180.0,3179.9,1.9673]
[1764807358337,1.08883297,3180.0,3179.9,1.96989692]
[1764807359740,1.08883297,3180.0,3179.9,4.07439692]
[1764807360535,4.31093297,3180.0,3179.9,1.96989692]
[1764807360839,1.08883297,3180.0,3179.9,4.07439692]
[1764807361037,4.31093297,3180.0,3179.9,1.96989692]
[1764807361340,2.27073297,3180.0,3179.9,4.07439692]
[1764807361734,4.31093297,3180.0,3179.9,1.96989692]
[1764807362836,4.0956,3180.7,3180.0,0.1572]
[1764807363036,1.1819,3180.5,3180.3,3.2078]
[1764807363534,1.1819,3180.5,3180.4,2.3834]
[1764807363744,4.89424086,3181.3,3180.4,2.3834]
[1764807363928,0.00390336,3180.5,3180.4,2.63538]
[1764807364133,0.00390336,3180.5,3180.4,5.686]
[1764807364333,1.29700336,3180.5,3180.4,5.686]
[1764807364534,0.00390336,3180.5,3180.4,5.686]
[1764807364836,0.00471735,3181.4,3181.2,2.4704]
[1764807365035,2.03231735,3181.4,3181.3,1.2352]
[1764807365232,4.14341735,3181.4,3180.9,5.11692237]
[1764807365741,2.03231735,3181.4,3181.3,1.2352]
[1764807366035,0.00759358,3181.4,3181.3,7.58732237]
[1764807367235,0.00759358,3181.4,3181.3,5.6782]
[1764807368234,2.03519358,3181.4,3181.3,4.443]
[1764807368739,0.00759358,3181.4,3181.3,2.4704]
[1764807370649,2.03519358,3181.4,3181.3,2.4704]
[1764807371042,5.4318,3181.0,3180.5,3.2078]
[1764807371235,2.0276,3180.2,3180.1,3.2078]
[1764807371545,2.0276,3180.2,3180.1,4.443]
[1764807371843,1.2931,3180.5,3180.1,4.443]
[1764807372234,1.2931,3180.5,3180.4,2.4704]
[1764807372442,3.2078,3180.9,3180.1,3.2078]
[1764807372633,3.2078,3180.9,3180.1,5.11692237]
[1764807372832,4.1387,3180.2,3180.1,3.2078]
[1764807375043,1.2931,3180.5,3180.1,4.443]
[1764807375238,1.69403444,3181.4,3180.2,1.90912237]
[1764807375439,3.3207,3180.5,3180.4,3.2078]
[1764807375636,5.4318,3180.5,3180.4,3.2078]
[1764807376338,4.1387,3180.1,3180.0,3.2078]
[1764807377442,2.0276,3180.1,3180.0,3.2078]
[1764807377643,4.1387,3180.1,3180.0,3.2078]
[1764807381942,2.0276,3180.1,3180.0,3.2078]
[1764807382151,4.1387,3180.1,3180.0,3.2078]
[1764807391554,4.1387,3180.1,3180.0,5.6782]
[1764807391755,4.1387,3180.1,3180.0,4.443]
[1764807392055,4.1387,3180.1,3180.0,3.2078]
[1764807394549,4.1387,3180.1,3180.0,4.443]
[1764807395252,2.0276,3180.1,3180.0,5.2204]
[1764807395559,1.8719,3180.1,3180.0,5.2204]
[1764807395853,1.2931,3181.0,3180.9,1.5548]
[1764807395854,3.165,3181.0,3180.9,1.5548]
[1764807396049,1.2931,3181.0,3180.9,1.5548]
[1764807396255,0.00759358,3181.4,3181.3,1.5548]
[1764807396857,3.91829358,3181.4,3180.7,3.2078]
[1764807397554,1.87949358,3181.4,3181.3,0.7774]
[1764807397855,1.87949358,3181.4,3181.3,1.5548]
[1764807398253,0.00759358,3181.4,3181.3,1.5548]
[1764807398858,3.91829358,3181.4,3181.3,0.7774]
[1764807399352,0.00759358,3181.4,3181.3,0.7774]
[1764807399554,1.1819,3182.0,3181.9,1.5548]
[1764807399755,5.0797,3182.3,3182.2,0.7774]
[1764807400052,3.2078,3182.3,3182.2,1.5548]
[1764807400251,1.1324,3183.0,3182.4,1.5548]
[1764807400453,1.1324,3183.0,3182.4,6.90203191]
[1764807400667,3.0076181,3182.5,3182.4,3.98811501]
[1764807400859,5.0464181,3182.5,3182.4,3.21071501]
[1764807401569,3.0076181,3182.5,3182.4,3.98811501]
[1764807402263,1.1357181,3182.5,3182.4,4.76551501]
[1764807403466,0.0033181,3182.5,3182.4,4.76551501]
[1764807403964,0.0033181,3182.5,3182.4,6.90494692]
[1764807406262,0.0033181,3182.5,3182.4,4.76551501]
[1764807406470,0.0033181,3182.5,3182.4,6.90494692]
[1764807407170,0.00471735,3182.8,3182.7,1.1198]
[1764807407568,1.1324,3183.5,3183.4,1.1198]
[1764807407766,3.6612,3183.3,3183.2,3.2078]
[1764807408067,3.6612,3183.3,3182.4,0.00291501]
[1764807408068,1.1398,3182.5,3182.4,0.00291501]
[1764807408268,1.1398,3182.5,3182.4,1.12271501]
[1764807409366,1.75701735,3182.8,3182.7,0.5599]
[1764807409673,0.00471735,3182.8,3182.7,1.1198]
[1764807409873,1.75701735,3182.8,3182.7,1.1198]
[1764807410570,1.75701735,3182.8,3182.7,0.5599]
[1764807411576,3.66591735,3182.8,3182.4,0.00291501]
[1764807412675,3.66591735,3182.8,3182.7,0.5599]
[1764807413473,4.801,3182.5,3182.4,0.00291501]
[1764807413873,2.8921,3181.5,3181.4,3.7706]
[1764807414072,4.801,3181.5,3181.4,3.2078]
[1764807414278,1.1398,3181.5,3181.4,4.3334]
[1764807414473,1.1398,3182.0,3181.4,4.3334]
[1764807414673,1.1398,3182.0,3181.9,3.26503191]
[1764807414874,2.8921,3182.0,3181.9,2.70223191]
[1764807415078,2.8921,3182.0,3181.9,0.5628]
[1764807415582,1.1398,3182.0,3181.9,1.1256]
[1764807418178,2.8921,3182.0,3181.9,0.5628]
[1764807418876,3.6612,3181.9,3181.8,3.2078]
[1764807421477,3.6612,3181.9,3181.6,0.00471735]
[1764807421478,3.6612,3181.7,3181.6,0.00471735]
[1764807424276,3.2078,3181.9,3181.4,3.2078]
[1764807424277,4.6972,3181.5,3181.4,3.2078]
[1764807424582,3.6125,3181.4,3181.0,3.2078]
[1764807425383,3.6125,3181.4,3181.0,3.21251735]
[1764807425981,1.0847,3181.5,3181.4,0.417]
[1764807426185,1.1398,3182.0,3181.4,3.6248]
[1764807426381,2.8889,3182.0,3181.9,0.2085]
[1764807427582,4.6972,3181.5,3181.4,3.2078]
[1764807427784,3.6125,3181.4,3181.0,3.21251735]
[1764807427982,3.6125,3181.4,3181.3,0.21177708]
[1764807428279,1.0847,3181.5,3181.4,0.417]
[1764807428481,1.1398,3182.0,3181.4,3.6248]
[1764807428684,2.8889,3182.0,3181.9,0.2085]
[1764807428887,4.7523,3182.0,3181.9,0.2085]
[1764807429590,4.7523,3182.0,3181.5,2.29655191]
[1764807430783,1.7491,3181.6,3181.5,2.50505191]
[1764807430986,3.6125,3181.6,3181.5,0.15712]
[1764807431786,3.6125,3181.6,3181.5,0.36562]
[1764807432286,1.7491,3181.6,3181.5,0.36562]
[1764807432589,1.7491,3181.6,3181.5,0.57412]
[1764807433184,3.6125,3181.6,3181.5,0.15712]
[1764807433390,4.6972,3181.5,3181.4,3.2078]
[1764807433779,4.7523,3182.0,3181.9,0.2085]
[1764807433981,4.7523,3182.0,3181.9,3.2078]
[1764807435294,4.7523,3182.0,3181.9,3.4163]
[1764807435488,1.1398,3182.0,3181.9,3.6248]
[1764807436092,4.7523,3182.0,3181.9,3.2078]
[1764807438597,2.8889,3182.0,3181.9,3.4163]
[1764807438986,1.1398,3182.0,3181.9,3.6248]
[1764807439191,1.1398,3182.5,3181.9,3.6248]
[1764807439392,3.6125,3182.4,3182.3,3.2078]
[1764807439591,1.7491,3182.4,3182.3,3.6248]
[1764807439787,2.8889,3182.5,3182.4,0.417]
[1764807440293,1.1398,3182.5,3182.4,2.55643191]
[1764807440595,3.6125,3182.4,3182.3,3.2078]
[1764807440893,3.6125,3182.4,3182.3,3.4163]
[1764807441094,3.6125,3182.4,3182.3,3.2078]
[1764807441296,3.6125,3182.4,3182.3,3.4163]
[1764807441694,1.1398,3182.5,3182.4,0.417]
[1764807441987,1.75381735,3182.8,3182.7,0.2085]
[1764807442186,1.75381735,3182.8,3182.7,0.417]
[1764807442593,0.00471735,3182.8,3182.7,0.417]
[1764807442793,1.75381735,3182.8,3182.7,0.417]
[1764807443295,3.61721735,3182.8,3182.7,0.2085]
[1764807443493,2.8338,3182.5,3182.4,2.71351191]
[1764807444385,3.6125,3182.4,3182.3,3.2078]
[1764807444595,3.6125,3181.7,3181.6,3.2078]
[1764807444890,3.6125,3181.4,3181.1,3.2078]
[1764807447197,3.6125,3180.8,3180.7,3.2078]
[1764807447397,1.0847,3180.5,3179.9,3.2078]
[1764807448396,0.00870125,3180.5,3180.4,5.66423191]
[1764807448797,1.75780125,3180.5,3180.4,5.66423191]
[1764807448997,0.00870125,3180.5,3180.4,5.66423191]
[1764807449192,1.75780125,3180.5,3180.4,5.66423191]
[1764807451394,0.00870125,3180.5,3180.4,5.66423191]
[1764807452401,0.00870125,3180.5,3180.4,3.5248]
[1764807455500,1.0847,3181.5,3181.1,3.5689]
[1764807455501,3.2078,3181.2,3181.1,3.5689]
[1764807455803,3.2078,3181.2,3181.1,5.47674548]
[1764807456600,3.21177143,3181.2,3181.1,5.47674548]
[1764807457105,4.96197143,3181.2,3181.1,5.47674548]
[1764807457507,6.72467143,3181.2,3181.1,1.90784548]
[1764807458208,1.0205,3181.0,3180.4,3.5689]
[1764807458406,3.5129,3180.5,3180.4,1.7826]
[1764807458897,1.7502,3180.5,3180.4,3.5689]
[1764807459297,2.7707,3181.0,3180.9,1.7826]
[1764807459500,0.00397143,3181.2,3180.9,3.5689]
[1764807459806,0.00397143,3181.2,3181.1,3.5689]
[1764807461194,3.4007,3181.1,3181.0,1.80555]
[1764807461401,1.6754,3181.1,3181.0,3.53715]
[1764807461606,3.4007,3181.1,3181.0,0.15715]
[1764807462107,3.4007,3180.9,3180.8,3.2078]
[1764807462506,2.6512,3180.5,3180.4,1.6484]
[1764807462706,4.3765,3180.5,3180.4,1.6484]
[1764807462904,3.4007,3180.4,3180.3,3.2078]
[1764807463308,3.4007,3180.4,3180.1,8.911]
[1764807464504,3.4007,3180.2,3180.1,8.911]
[1764807468612,3.4007,3180.2,3180.1,10.5594]
[1764807469810,1.6754,3180.2,3180.1,12.291]
[1764807470509,4.3765,3179.5,3179.4,3.2078]
[1764807470706,3.4007,3179.1,3179.0,15.7678]
[1764807470907,3.4007,3179.1,3179.0,12.56]
[1764807471099,3.4007,3178.5,3178.4,3.55624548]
[1764807471404,4.3765,3178.5,3177.8,3.2078]
[1764807471610,0.00819502,3178.5,3178.4,5.28784548]
[1764807472012,3.2078,3179.3,3179.2,3.38]
[1764807472304,3.2078,3179.3,3179.2,5.28784548]
[1764807472512,3.2078,3179.7,3179.6,1.6484]
[1764807472704,6.6085,3179.7,3179.2,1.90784548]
[1764807472904,6.61077072,3179.7,3179.2,1.90784548]
[1764807473505,4.88547072,3179.7,3179.2,1.90784548]
[1764807473803,4.88547072,3179.7,3179.1,3.36975735]
[1764807474011,3.21007072,3179.7,3179.6,5.28784548]
[1764807476018,0.00471735,3179.8,3179.7,3.38]
[1764807476910,1.68011735,3179.8,3179.7,1.6484]
[1764807477212,3.4007,3179.6,3179.5,3.2078]
[1764807477512,1.6754,3179.3,3179.1,5.12036283]
[1764807477716,1.6754,3179.3,3179.2,1.6484]
[1764807478212,3.4007,3179.3,3179.1,5.12036283]
[1764807478612,1.6754,3179.3,3179.1,5.12036283]
[1764807478808,1.6754,3179.3,3179.2,1.6484]
[1764807479013,0.9758,3179.5,3179.4,1.6484]
[1764807479220,0.00697723,3179.8,3179.4,3.38]
[1764807479424,0.00697723,3179.8,3179.7,3.38]
[1764807481506,4.1836,3180.5,3180.4,1.6484]
[1764807481711,3.2078,3180.5,3180.4,3.38]
[1764807481912,3.2078,3180.5,3180.4,5.28784548]
[1764807482121,3.2078,3180.9,3180.8,3.38]
[1764807482312,3.21093538,3180.9,3180.8,5.29127322]
[1764807482624,0.00313538,3180.9,3180.8,5.29127322]
[1764807483318,3.40383538,3180.9,3180.8,0.00342774]
[1764807484327,0.00313538,3180.9,3180.8,3.24182774]
[1764807488525,3.35763538,3180.9,3180.8,0.00342774]
[1764807489924,0.00313538,3180.9,3180.8,3.24182774]
[1764807490128,0.00313538,3180.9,3180.8,3.39898774]
[1764807490325,0.00313538,3180.9,3180.8,6.60678774]
[1764807490928,0.00471735,3181.2,3181.1,3.2384]
[1764807491125,0.00471735,3181.2,3181.1,5.14624548]
[1764807491832,4.8343,3181.8,3181.7,1.5399]
[1764807492037,4.83737629,3181.8,3181.7,1.5399]
[1764807492337,1.6265,3181.5,3181.4,1.90784548]
[1764807493035,3.21559364,3181.8,3181.4,5.14624548]
[1764807494429,3.21559364,3181.8,3181.7,3.2384]
[1764807494833,4.84209364,3181.8,3181.7,3.2384]
[1764807495242,3.21559364,3181.8,3181.7,3.2384]
[1764807495430,6.57009364,3181.8,3181.4,1.90784548]
[1764807497738,1.6265,3181.5,3181.4,3.44774548]
[1764807497937,4.3305,3181.0,3180.9,1.90784548]
[1764807498142,3.3545,3180.9,3180.8,0.00342774]
[1764807499034,3.2078,3181.0,3180.9,3.2384]
[1764807499241,3.2078,3181.4,3180.9,5.14624548]
[1764807499440,4.3305,3181.0,3180.9,1.90784548]
[1764807500738,0.976,3181.5,3180.9,1.90784548]
[1764807500739,3.21559364,3181.8,3181.4,1.5399]
[1764807501041,1.6265,3181.2,3181.1,3.60488548]
[1764807501244,0.976,3181.5,3181.1,5.30338548]
[1764807501439,3.21559364,3181.8,3181.7,1.5399]
[1764807501743,0.00779364,3181.8,3181.7,8.35404548]
[1764807502043,3.2078,3182.2,3181.7,8.35404548]
[1764807502237,3.2078,3182.6,3182.4,1.5399]
[1764807502440,3.2078,3182.6,3182.5,3.44774548]
[1764807502839,4.1838,3183.0,3182.5,5.14624548]
[1764807503037,7.54101004,3183.0,3182.9,1.90784548]
[1764807503238,3.21051004,3183.0,3182.9,3.44774548]
[1764807503540,3.2078,3183.9,3183.4,1.5399]
[1764807503735,3.2078,3183.9,3183.4,1.90784548]
[1764807503736,6.5623,3183.9,3183.4,1.90784548]
[1764807503938,1.6265,3183.1,3183.0,1.90784548]
[1764807504139,1.728,3183.1,3182.9,3.2078]
[1764807504338,4.3305,3183.0,3182.6,1.90784548]
[1764807504747,4.3338439,3183.0,3182.6,1.91024779]
[1764807505240,6.5623,3182.7,3182.6,0.00240231]
[1764807506941,4.8343,3182.7,3182.6,0.00240231]
[1764807507140,3.2078,3182.7,3182.6,1.54230231]
[1764807507646,3.2078,3182.7,3182.6,3.24080231]
[1764807510948,6.5623,3182.7,3182.6,0.00240231]
[1764807511944,3.2078,3182.7,3182.6,3.24080231]
[1764807512348,3.2078,3182.7,3182.6,3.67747567]
[1764807512951,3.2078,3182.7,3182.6,5.37597567]
[1764807513850,0.0033439,3183.0,3182.9,3.1011]
[1764807515754,3.2078,3183.9,3183.4,2.9663]
[1764807515943,3.2078,3183.5,3182.8,3.2078]
[1764807516848,1.4269,3182.8,3182.7,2.13517336]
[1764807517051,3.0032,3182.7,3182.6,0.00240231]
[1764807517955,3.0032,3183.1,3182.6,0.00240231]
[1764807518148,3.0032,3183.1,3183.0,2.13517336]
[1764807518743,3.2113783,3183.5,3183.0,5.10147336]
[1764807518955,6.2145783,3183.5,3183.4,2.13517336]
[1764807520351,3.2113783,3183.5,3183.4,5.10147336]